[Event "WYCC U14 Girls 2019"]
[Site "Mumbai"]
[Date "2019.10.12"]
[Round "11.11"]
[White "Hakobyan, Astghik"]
[Black "Marium Fatima"]
[Result "*"]
[ECO "C18"]
[WhiteElo "1978"]
[BlackElo "1628"]
[Annotator "NA"]
[PlyCount "62"]
[EventDate "2019.10.02"]
[EventType "swiss"]
[EventCountry "IND"]
[SourceTitle "playchess.com"]
[Source "ChessBase"]
[SourceQuality "1"]
[TimeControl "40/5400+30:1800+30"]

1. e4 e6 2. d4 d5 3. Nc3 Bb4 4. e5 c5 5. a3 Bxc3+ 6. bxc3 Ne7 7. Qg4 O-O 8. Nf3 c4 9. h4 Nbc6 10. h5 Qa5 11. Bd2 f5 12. Qf4 Bd7 13. Rg1 Kf7 14. Ng5+ Ke8 15. h6 gxh6 16. Nxh7 Rh8 17. Qxh6 Kd8 18. Qg7 Kc7 19. Nf6 Rad8 20. Be2 Qa4 21. Kd1 Qb5 22. Kc1 Qa5 23. Bh5 Kc8 24. Bf7 a6 25. Nxd7 Kxd7 26. Qf6 Kc7 27. Bxe6 Rdf8 28. Bf7 Kb8 29. e6 Ka8 30. Kb2 Qb5+ 31. Ka2 Qa4 *

[Event "WYCC U14 Girls 2019"]
[Site "Mumbai"]
[Date "2019.10.12"]
[Round "11.12"]
[White "Zhuang, Yongzhe"]
[Black "De Rycke, Tyani"]
[Result "0-1"]
[ECO "A08"]
[WhiteElo "1696"]
[BlackElo "1891"]
[Annotator "NA"]
[PlyCount "76"]
[EventDate "2019.10.02"]
[EventType "swiss"]
[EventCountry "IND"]
[SourceTitle "playchess.com"]
[Source "ChessBase"]
[SourceQuality "1"]
[TimeControl "40/5400+30:1800+30"]

1. e4 {[%emt 0:00:00]} c5 {[%emt 0:00:00]} 2. Nf3 {[%emt 0:00:00]} e6 {[%emt 0:00:00]} 3. d3 {[%emt 0:00:00]} Nc6 {[%emt 0:00:00]} 4. g3 {[%emt 0:00:06]} d5 {[%emt 0:00:00]} 5. Nbd2 {[%emt 0:00:08]} Nf6 {[%emt 0:00:56]} 6. Bg2 {[%emt 0:00:09]} Be7 {[%emt 0:00:36]} 7. O-O {[%emt 0:00:14]} O-O {[%emt 0:00:24]} 8. Re1 {[%emt 0:01:37]} Qc7 {[%emt 0:02:03]} 9. Qe2 {[%emt 0:06:26]} b6 {[%emt 0:00:29]} 10. e5 {[%emt 0:02:11]} Nd7 {[%emt 0:01:06]} 11. Nf1 {[%emt 0:00:19]} Ba6 {[%emt 0:02:09]} 12. Bf4 {[%emt 0:02:47]} Rab8 {[%emt 0:01:33]} 13. h4 {[%emt 0:01:35]} Rfc8 {[%emt 0:07:10]} 14. N1h2 {[%emt 0:04:11]} b5 {[%emt 0:05:25]} 15. Ng5 {[%emt 0:14:24]} Bxg5 {[%emt 0:02:06]} 16. hxg5 {[%emt 0:00:46]} c4 {[%emt 0:02:00]} 17. dxc4 {[%emt 0:10:55]} bxc4 {[%emt 0:01:55]} 18. c3 {[%emt 0:00:30]} Nc5 {[%emt 0:00:37]} 19. Ng4 {[%emt 0:23:38]} Nd7 {[%emt 0:00:23]} 20. Nh2 {[%emt 0:00:00]} Nc5 {[%emt 0:00:37]} 21. Ng4 {[%emt 0:01:00]} Nd3 {[%emt 0:18:39]} 22. Reb1 {[%emt 0:03:06]} Ne7 {[%emt 0:05:00]} 23. Bc1 {[%emt 0:03:43]} Nf5 {[%emt 0:01:07]} 24. Bf4 {[%emt 0:01:35]} Rb6 {[%emt 0:01:50]} 25. Ne3 {[%emt 0:01:09]} Ne7 {[%emt 0:03:10]} 26. Nc2 {[%emt 0:06:55]} Rcb8 {[%emt 0:02:26]} 27. Nb4 {[%emt 0:01:19]} Nxb4 {[%emt 0:00:32]} 28. cxb4 {[%emt 0:00:06]} Rxb4 {[%emt 0:00:10]} 29. Qc2 {[%emt 0:02:38]} Qb6 {[%emt 0:01:47]} 30. b3 {[%emt 0:01:11]} Nf5 {[%emt 0:02:51]} 31. Bd2 {[%emt 0:00:00]} Ne7 {[%emt 0:00:00]} 32. Bf4 {[%emt 0:01:00]} Nf5 {[%emt 0:01:00]} 33. Bd2 {[%emt 0:01:49]} Nd4 {[%emt 0:09:19]} 34. Qd1 {[%emt 0:00:15]} c3 {[%emt 0:00:22]} 35. Be3 {[%emt 0:09:49]} c2 {[%emt 0:00:11]} 36. Qxc2 {[%emt 0:00:22]} Nxc2 {[%emt 0:00:13]} 37. Bd4 {[%emt 0:00:08]} Rb5 38. Bxb6 {[%emt 0:01:03]} R5xb6 {[%emt 0:00:40]} 0-1